[Event "Rosh Hashanah Rapid 2022"]
[Site "Ramat Gan"]
[Date "2022.09.25"]
[Round "4.2"]
[White "Ben Ari, Yannay"]
[Black "Veinberg, Nimrod"]
[Result "1-0"]
[ECO "E43"]
[WhiteElo "2387"]
[BlackElo "2400"]
[Annotator "TA"]
[PlyCount "72"]
[EventDate "2022.09.25"]
[EventType "rapid"]
[EventCountry "ISR"]
[SourceTitle "playchess.com"]
[Source "ChessBase"]
[SourceQuality "1"]
[TimeControl "900+5"]

{[%evp 19,72,16,16,0,0,0,0,-7,0,-34,-23,-45,39,-42,-9,-17,150,151,168,168,163,150,162,91,99,73,63,31,50,68,55,67,250,0,307,0,131,-71,121,130,120,0,172,162,234,226,237,154,152,-14,-21,-29,-37,-60,569]} 1. d4 {[%emt 0:00:03]} Nf6 {[%emt 0:00:00]} 2. c4 {[%emt 0:00:01]} e6 {[%emt 0:00:01]} 3. Nc3 {[%emt 0:00:01]} Bb4 {[%emt 0:00:01]} 4. e3 {[%emt 0:00:02]} O-O {[%emt 0:00:02]} 5. Bd3 {[%emt 0:00:01]} c5 {[%emt 0:00:07]} 6. Nf3 {[%emt 0:00:15]} b6 {[%emt 0:00:02]} 7. O-O {[%emt 0:00:51]} Bb7 {[%emt 0:00:01]} 8. Na4 {[%emt 0:01:00]} cxd4 {[%emt 0:00:04]} 9. exd4 {[%emt 0:00:03]} Re8 {[%emt 0:00:02]} 10. a3 {[%emt 0:00:23]} Bf8 {[%emt 0:00:02]} 11. Bg5 {[%emt 0:00:17] E43: Nimzo-Indian: Rubinstein: 4...b6.} h6 {[%emt 0:01:40]} 12. Bh4 {[%emt 0:00:05]} Bxf3 {[%emt 0:01:50]} 13. Qxf3 {[%emt 0:00:02] The position is equal.} Nc6 {[%emt 0:00:00] [#]} 14. d5 $146 {[%emt 0:01:35]} ({Predecessor:} 14. Qe3 Be7 15. Rfe1 d5 16. c5 e5 17. dxe5 Ng4 18. Bxe7 Rxe7 19. Qg3 Ngxe5 20. Bb5 bxc5 21. Nxc5 Qb6 22. Bxc6 Nxc6 23. Rxe7 {½-½ (23) Chatalbashev,B (2552)-Iordachescu,V (2610) Baden-Baden 2013}) 14... Ne5 {[%emt 0:00:30]} 15. Qd1 {[%emt 0:00:05]} g5 {[%emt 0:00:58]} (15... Rc8 $15) 16. Bg3 {[%emt 0:00:04]} (16. f4 $1 $14 Nf3+ 17. Qxf3 gxh4 18. dxe6) 16... exd5 {[%emt 0:00:02]} 17. cxd5 {[%emt 0:00:07]} Nxd5 $2 {[%emt 0:00:06]} (17... Nxd3 $11 18. Qxd3 Ne4) 18. Be4 $16 {[%emt 0:00:42] This bishop pair is nice.} Nf4 {[%emt 0:01:00]} 19. Bxa8 {[%emt 0:00:07]} Qxa8 {[%emt 0:00:01][%csl Gf4][%cal Ra8g2]} 20. Bxf4 {[%emt 0:00:25]} gxf4 {[%emt 0:00:01]} 21. Qh5 {[%emt 0:01:39]} (21. Nc3 $18) 21... Re6 {[%emt 0:02:01]} 22. Nc3 {[%emt 0:02:56]} Rg6 {[%emt 0:02:04][%csl Gg6][%cal Ra8g2]} 23. Qh3 {[%emt 0:01:11]} (23. f3 $5 {[%cal Rh5e5]} Nc4 24. Kh1 $16) 23... Bc5 {[%emt 0:01:24]} 24. Rad1 {[%emt 0:01:33] Hoping for Nd5.} f3 {[%emt 0:03:51][%cal Rf3g2]} 25. g3 {[%emt 0:00:06]} Ng4 $2 {[%emt 0:00:03]} (25... Qc6 $1 $14) 26. Nd5 $2 {[%emt 0:01:47]} ({Less strong is} 26. Rxd7 Qe8 27. Rd2 (27. Rxa7 Nxf2 28. Qd7 Ne4+ 29. Kh1 Nf2+ 30. Kg1 Ne4+ 31. Kh1 Nf2+ 32. Kg1 $11) 27... Kg7 $16) (26. b4 $1 $18 {[%cal Rb4c5]} Bf8 27. Rd4 (27. Rxd7 Qc6 $18)) 26... Qe8 $2 {[%emt 0:00:22][%mdl 8192] [#]} (26... Qc6 $1 $11 {and Black has nothing to worry.}) 27. Nf4 $2 {[%emt 0:00:56]} (27. Qxg4 $1 $18 {[%mdl 512]} Rxg4 28. Nf6+ Kf8 29. Nxe8 Kxe8 30. b4) 27... Rg5 {[%emt 0:00:10]} (27... Qe4 $1 $11 {remains equal.} 28. Nxg6 Bxf2+ 29. Kh1 fxg6) 28. Nd3 $2 {[%emt 0:00:13]} (28. b4 $16 {is forced if you want to stay better.} Bxf2+ 29. Rxf2) 28... Bd4 {[%emt 0:00:12]} (28... Qe2 $1 $17 {and life is bright.} 29. Nxc5 Nxf2 30. Rxf2 (30. Qxh6 $2 Ne4 $19) 30... Qxd1+ 31. Qf1 Qxf1+ 32. Kxf1 bxc5) 29. Rfe1 {[%emt 0:00:06]} Qc8 {[%emt 0:00:06]} 30. Rc1 {[%emt 0:00:33] Inhibits Qc2.} (30. Rd2 $1 $16) 30... Qa6 $2 {[%emt 0:00:01] [#]} (30... Qb7 $11) 31. Qf1 $1 $36 {[%emt 0:00:06][%mdl 2048] aiming for Re8+. White is in control.} Qb5 {[%emt 0:00:11] [#]} (31... Qb7 $142 32. Re7 Qd5) 32. Re4 $1 {[%emt 0:00:09]} Qd5 {[%emt 0:00:02]} 33. Rce1 {[%emt 0:00:07]} Kg7 {[%emt 0:00:18]} 34. h4 $2 {[%emt 0:00:02] [#]} (34. Rf4 $16 {And now Ree4 would win.} h5 35. b3) 34... Nxf2 $11 {[%emt 0:00:27][%mdl 64] Remove Defender} 35. Nxf2 {[%emt 0:00:05] Really sharp!} Rxg3+ {[%emt 0:00:01]} 36. Kh1 {[%emt 0:00:01] Threatens to win with Rd1.} Rg2 $2 {[%emt 0:00:01][%mdl 8192] Weighted Error Value: White=0.64/Black=0.63} (36... f5 $1 $15 37. Rf4 Qd6 38. Rxf5 Bxf2 39. Qxf2 Rg2 40. Re7+ (40. Rg1 $2 Qh2#) (40. Rf7+ Kg8 $17) 40... Qxe7 41. Qd4+ Kh7 42. Rxf3 Rg6) 1-0

[Event "Rosh Hashanah Rapid 2022"]
[Site "Ramat Gan"]
[Date "2022.09.25"]
[Round "4.3"]
[White "Levin, Guy"]
[Black "Parkhov, Yair"]
[Result "1-0"]
[ECO "B23"]
[WhiteElo "2382"]
[BlackElo "2479"]
[Annotator "TA"]
[PlyCount "77"]
[EventDate "2022.09.25"]
[EventType "rapid"]
[EventCountry "ISR"]
[SourceTitle "playchess.com"]
[Source "ChessBase"]
[SourceQuality "1"]
[TimeControl "900+5"]

{[%evp 9,77,14,22,-11,4,-2,8,-11,-8,-3,-3,-21,17,-19,-8,-9,0,-27,21,0,21,-40,-43,-41,-8,-39,-9,0,0,0,16,0,37,33,136,99,88,-8,-27,-25,0,-41,0,0,129,-55,-57,-65,0,0,626,621,607,607,750,757,799,778,726,673,1404,1373,1629,1589,1569,718,1547,1435,964,745]} 1. e4 {[%emt 0:00:01]} c5 {[%emt 0:00:04]} 2. Nc3 {[%emt 0:00:03]} a6 {[%emt 0:00:10]} 3. g3 {[%emt 0:00:02]} b5 {[%emt 0:00:04]} 4. Bg2 {[%emt 0:00:01]} Bb7 {[%emt 0:00:03]} 5. d3 {[%emt 0:00:02]} e6 {[%emt 0:00:05]} 6. Be3 {[%emt 0:00:01] B23: Closed Sicilian: Lines without g3.} Nc6 {[%emt 0:00:30]} 7. f4 {[%emt 0:00:09]} Be7 {[%emt 0:02:14]} 8. Nf3 {[%emt 0:00:58] The position is equal.} d6 {[%emt 0:01:12]} 9. O-O {[%emt 0:00:09]} Nf6 {[%emt 0:00:23]} 10. h3 {[%emt 0:00:05]} b4 {[%emt 0:04:08]} 11. Ne2 {[%emt 0:00:50]} d5 {[%emt 0:00:16]} 12. e5 {[%emt 0:00:16]} Nd7 {[%emt 0:00:02] [#]} 13. d4 $146 {[%emt 0:00:04][%cal Of4f5]} (13. c4 $5 {[%cal Rc4d5]}) ({Predecessor:} 13. c3 O-O 14. d4 bxc3 15. bxc3 Rc8 16. Ne1 Na5 17. f5 cxd4 18. Bxd4 exf5 19. Rxf5 {0-1 (25) Suarez Sierralta,J (1885)-Benavides Montenegro,M (2209) Caracas 2019}) 13... Qb6 {[%emt 0:00:32]} (13... O-O $142) 14. c3 $11 {[%emt 0:00:33][%cal Of4f5]} a5 {[%emt 0:00:37]} 15. dxc5 {[%emt 0:00:42]} (15. Bf2 $11) 15... Bxc5 $15 {[%emt 0:00:05]} 16. Ned4 {[%emt 0:00:01]} O-O {[%emt 0:00:15]} (16... Ba6 $5 {[%cal Ra6f1]}) 17. Kh2 {[%emt 0:00:10]} Rac8 {[%emt 0:00:25]} (17... Ba6 $5 {[%cal Ra6f1]} 18. Re1 Rab8 $11) 18. Rc1 {[%emt 0:00:10]} bxc3 {[%emt 0:00:31]} 19. Rxc3 {[%emt 0:00:11]} Nxd4 {[%emt 0:00:41]} (19... Qxb2 $2 20. Rb3 Qxa2 21. Rxb7 Nxd4 22. Nxd4 (22. Bxd4 Bxd4 23. Qxd4 Nc5 $18) 22... Bxd4 23. Qxd4 $18) 20. Nxd4 {[%emt 0:00:08][%cal Bf3d4,Bd4f5,Bf5d6][%mdl 32]} Ba6 {[%emt 0:00:25]} (20... Qxb2 $2 21. Rb3 Bxd4 22. Rxb2 Bxb2 23. Qb3 $18) 21. Rf2 {[%emt 0:00:04]} Rc7 {[%emt 0:01:16]} (21... g6 $14) 22. Rfc2 {[%emt 0:00:16]} Rfc8 {[%emt 0:00:08]} 23. Qc1 {[%emt 0:00:23]} (23. f5 $16 {Strongly threatening fxe6.} Bxd4 24. Bxd4 (24. Qxd4 Qxd4 25. Bxd4 Rxc3 $14) 24... Rxc3 25. Rxc3) 23... Bc4 $11 {[%emt 0:00:14]} 24. Qd1 {[%emt 0:02:50]} Bb4 {[%emt 0:00:15]} (24... Bxa2 $5 {[%cal Ra5a4]} 25. b4 axb4 26. Rxc5 Nxc5 27. Rxa2 b3 $15) 25. Nf5 {[%emt 0:00:02]} Qa6 {[%emt 0:00:19]} (25... Qb8 $5 {[%cal Re6f5]} 26. Nd6 Bxc3 27. Nxc8 Rxc8 28. bxc3 Nc5 $15) 26. Nd6 {[%emt 0:00:22]} Rb8 {[%emt 0:00:15] [#]} (26... Bxc3 $11 27. Nxc8 Bb4) 27. Rd3 $2 {[%emt 0:02:58] White has more active pieces.} ({Worse is} 27. Rxc4 dxc4 28. b3 a4 $11) (27. Qc1 $1 $16) 27... Bxd6 $15 {[%emt 0:01:05]} 28. exd6 {[%emt 0:00:01]} Qxd6 {[%emt 0:00:17]} (28... Rcb7 $1 $15 29. Rdd2 Bxa2) 29. Rdc3 $11 {[%emt 0:00:02][%cal Oc3c4] And now Rxc4! would win.} d4 $2 {[%emt 0:00:50][%mdl 8192]} (29... Rbc8 $11) 30. Rxc4 $18 {[%emt 0:00:06] White is clearly winning.} Rxc4 {[%emt 0:00:04]} 31. Rxc4 {[%emt 0:00:01]} e5 {[%emt 0:00:06]} 32. fxe5 {[%emt 0:00:12]} Nxe5 {[%emt 0:00:01]} 33. Rxd4 {[%emt 0:00:03]} Qe7 {[%emt 0:00:01]} 34. Bf4 {[%emt 0:00:06] Threatens to win with Bxe5.} Re8 {[%emt 0:00:05]} 35. Bxe5 {[%emt 0:00:08][%cal Og2c6] aiming for Bc6!} Qxe5 {[%emt 0:00:04]} 36. Re4 {[%emt 0:00:01]} Qb8 {[%emt 0:00:04]} 37. Rxe8+ {[%emt 0:00:04]} Qxe8 {[%emt 0:00:01]} 38. Qd5 {[%emt 0:00:01]} a4 {[%emt 0:00:08]} 39. Qa8 {[%emt 0:00:02] Weighted Error Value: White=0.30/Black=0.56} 1-0

[Event "Rosh Hashanah Rapid 2022"]
[Site "Ramat Gan"]
[Date "2022.09.25"]
[Round "4.4"]
[White "Vagman, Roy"]
[Black "Aizenberg, Benny"]
[Result "0-1"]
[ECO "B45"]
[WhiteElo "2287"]
[BlackElo "2412"]
[Annotator "TA"]
[PlyCount "56"]
[EventDate "2022.09.25"]
[EventType "rapid"]
[EventCountry "ISR"]
[SourceTitle "playchess.com"]
[Source "ChessBase"]
[SourceQuality "1"]
[TimeControl "900+5"]

{[%evp 16,56,34,21,91,87,87,91,79,83,87,80,85,0,0,0,0,-84,0,-38,0,-241,-252,-237,-226,-493,-486,-464,-292,-293,-298,-383,-362,-29990,-29991,-29994,-29995,-29995,-29996,-29997,-29998,-29998,-29999]} 1. e4 {[%emt 0:00:02]} c5 {[%emt 0:00:02]} 2. Nf3 {[%emt 0:00:04]} e6 {[%emt 0:00:03]} 3. d4 {[%emt 0:00:03]} cxd4 {[%emt 0:00:01]} 4. Nxd4 {[%emt 0:00:02]} Nf6 {[%emt 0:00:01]} 5. Nc3 {[%emt 0:00:25]} Nc6 {[%emt 0:00:02]} 6. Nxc6 {[%emt 0:00:27]} bxc6 {[%emt 0:00:01]} 7. e5 {[%emt 0:00:01]} Nd5 {[%emt 0:00:01]} 8. Ne4 {[%emt 0:00:02]} Qc7 {[%emt 0:00:01]} 9. f4 $1 {[%emt 0:00:01]} Rb8 {[%emt 0:00:01] B45: Sicilian Four Knights.} (9... Qb6 $11) 10. c4 $1 $16 {[%emt 0:00:40]} Bb4+ {[%emt 0:00:02]} 11. Ke2 {[%emt 0:00:17]} (11. Kf2 $6 f5 12. exf6 (12. cxd5 fxe4 13. d6 Qa5 $11) 12... Nxf6 13. Nxf6+ gxf6 $11) 11... O-O {[%emt 0:00:14][%cal Of7f6] White is better.} 12. a3 {[%emt 0:01:17]} Be7 {[%emt 0:00:01][%cal Od5f4]} 13. cxd5 {[%emt 0:00:38]} cxd5 {[%emt 0:00:02]} 14. Nf2 {[%emt 0:02:24]} ({Better is} 14. Nd6 $1 $16) 14... f6 $11 {[%emt 0:00:05]} 15. exf6 {[%emt 0:01:13]} Bxf6 {[%emt 0:00:08]} 16. Nd3 {[%emt 0:01:09] [#]} (16. Qd2 $11) 16... Ba6 {[%emt 0:00:09] Black is much more active. The white rooks are badly placed.} (16... e5 $1 $17 {[%cal Re5f4]}) 17. Kf3 {[%emt 0:00:42] [#]} Qc4 $146 {[%emt 0:03:23] White must now prevent ...Rb3.} ({Predecessor:} 17... e5 18. Kg3 Bc4 19. Nb4 exf4+ 20. Kf3 Qe5 21. Bxc4 Qh5+ 22. g4 Qh3+ 23. Ke2 Rfe8+ 24. Kd2 dxc4 {0-1 (24) Coro,L (2340)-Gomez,C (2300) Buenos Aires 2019}) 18. Nc5 {[%emt 0:02:10] Against Rb3+} Qxc5 $19 {[%emt 0:00:26] Dancing on a razor blade.} 19. Bxa6 {[%emt 0:00:01]} Bxb2 {[%emt 0:00:08]} 20. Bxb2 {[%emt 0:01:30]} (20. Rb1 Qxa3+ 21. Bd3 Bxc1 22. Rxc1) 20... Rxb2 {[%emt 0:00:02]} 21. Be2 {[%emt 0:00:31]} d4 {[%emt 0:01:36]} ({Avoid the trap} 21... h5 $2 22. Rf1 e5 23. g3 exf4 24. gxf4 $19) 22. Kg3 {[%emt 0:01:11]} Qc3+ {[%emt 0:00:44]} 23. Bf3 {[%emt 0:00:09]} Qe3 {[%emt 0:00:02] ( -> ...Rf6)} 24. h4 $2 {[%emt 0:01:04] [#]} (24. Qc1 $19 Rd2 25. h4 Qf2+ 26. Kh2 (26. Kh3 $2 Rxf4 27. Qc8+ Rf8 $19) 26... Qxh4+ 27. Kg1 Qf2+ 28. Kh2 Rxf4 29. Qc8+ Rf8 30. Qxd7 Rxf3 31. Qxe6+ Rf7 32. Qc8+ Rf8 33. Qe6+ Kh8 34. Qg4) 24... Qf2+ $1 {[%emt 0:00:40] Black mates.} ({Worse is} 24... Rd2 25. Qe1 Qxf4+ 26. Kh3 $11) 25. Kg4 {[%emt 0:00:39]} h5+ $1 {[%emt 0:00:07][%mdl 64] Deflection} 26. Kxh5 {[%emt 0:00:14]} Qg3 {[%emt 0:00:01][%cal Rf8f5]} 27. Bg4 {[%emt 0:00:16]} Rb5+ {[%emt 0:00:02]} 28. f5 {[%emt 0:00:04]} Rbxf5+ {[%emt 0:00:01] Weighted Error Value: White=0.55/Black=0.31} 0-1

[Event "Rosh Hashanah Rapid 2022"]
[Site "Ramat Gan"]
[Date "2022.09.25"]
[Round "4.5"]
[White "Gorodetzky, David"]
[Black "Kaganskiy, Gleb"]
[Result "1-0"]
[ECO "B13"]
[WhiteElo "2495"]
[BlackElo "2225"]
[Annotator "TA"]
[PlyCount "133"]
[EventDate "2022.09.25"]
[EventType "rapid"]
[EventCountry "ISR"]
[SourceTitle "playchess.com"]
[Source "ChessBase"]
[SourceQuality "1"]
[TimeControl "900+5"]

{[%evp 12,133,27,34,33,29,31,8,27,0,7,0,8,7,8,0,13,-56,67,60,67,34,50,52,36,-10,-16,-12,-10,-90,-58,-36,-48,-59,6,-75,0,-356,-10,-41,-45,-328,-26,-413,-356,-418,-411,-411,-322,-1096,-1023,-1083,-1076,-1007,-1007,-870,-835,-781,-502,-1213,-315,-337,0,-1213,-1213,-1213,-1213,-1191,-1191,-1168,-1168,-1150,-1143,-1131,-1128,-991,-426,-972,-229,-358,-306,-337,-231,-222,-223,-225,-195,-199,-200,-327,-321,-426,-229,-222,-220,-203,0,0,24,0,0,-131,166,0,0,0,112,0,0,0,0,0,0,-110,250,199,1210,1008,29985,29986,29986,29987,29987,29988]} 1. Nf3 {[%emt 0:00:14]} d5 {[%emt 0:00:03]} 2. d4 {[%emt 0:00:05]} Nf6 {[%emt 0:00:03]} 3. Bf4 {[%emt 0:00:03]} c5 {[%emt 0:00:02]} 4. e3 {[%emt 0:00:02]} Nc6 {[%emt 0:00:01]} 5. Nbd2 {[%emt 0:00:03]} cxd4 {[%emt 0:00:05]} 6. exd4 {[%emt 0:00:03]} Bg4 {[%emt 0:00:02]} 7. c3 {[%emt 0:00:33]} e6 {[%emt 0:00:04] B13: Caro-Kann: Exchange Variation and Panov-Botvinnik Attack.} 8. Qb3 {[%emt 0:00:05]} Qc8 {[%emt 0:00:03]} 9. h3 {[%emt 0:00:15]} Bh5 {[%emt 0:00:03] The position is equal.} 10. g4 {[%emt 0:00:33]} Bg6 {[%emt 0:00:03]} 11. Nh4 {[%emt 0:00:08]} Be7 {[%emt 0:00:34]} 12. Nxg6 {[%emt 0:00:30]} hxg6 {[%emt 0:00:02]} 13. Bg2 {[%emt 0:00:05]} O-O {[%emt 0:00:53] [#]} 14. g5 $146 {[%emt 0:02:08]} (14. Qb5 $11) ({Predecessor:} 14. O-O a6 15. a4 Qd7 16. Nf3 Ne4 17. Ne5 Nxe5 18. dxe5 g5 19. Be3 Bc5 20. c4 dxc4 21. Qxc4 Bxe3 22. Qxe4 {½-½ (100) Moon,B (2324)-Furfine,J (2324) Charlotte 2017}) 14... Nd7 {[%emt 0:00:20]} (14... Nh5 $15 15. Be3 Bd6) 15. Nf3 $14 {[%emt 0:02:02] White is more active.} Re8 {[%emt 0:00:34][%cal Oe6e5]} 16. h4 {[%emt 0:00:20]} e5 $1 {[%emt 0:00:59]} 17. dxe5 {[%emt 0:01:05]} Nc5 $1 {[%emt 0:04:17]} 18. Qc2 {[%emt 0:00:38]} (18. Qxd5 $2 Rd8 19. Bh3 (19. Qc4 $2 Na5 $19) 19... Rxd5 $19) (18. Qb5 $14) 18... Qg4 $11 {[%emt 0:00:19][%csl LRf4,LRg2]} 19. Bg3 {[%emt 0:00:13]} Ne4 $1 {[%emt 0:00:47][%mdl 1024] Black has compensation. Pair of Knights!} 20. Rh3 {[%emt 0:03:06]} (20. O-O $11) 20... Rac8 {[%emt 0:01:44]} 21. Kf1 {[%emt 0:00:30]} Qf5 $36 {[%emt 0:01:52][%mdl 2048] Black is pushing.} 22. Qe2 {[%emt 0:00:58]} Bd6 {[%emt 0:00:33]} (22... Bc5 $15) 23. Re1 {[%emt 0:01:14]} (23. Nd2 $11 {remains equal.} Nxg3+ 24. Rxg3 Bxe5 25. Bh3 Bxg3 26. Bxf5 Rxe2 27. Kxe2 Re8+ 28. Kf1) 23... Nxe5 {[%emt 0:00:37]} (23... Bxe5 24. Bxe5 Nxe5 25. Nxe5 Rxe5 26. Kg1 $11) (23... Bc5 $17) 24. Nd4 $2 {[%emt 0:01:36][%mdl 8192] [#]} (24. Bxe5 $11 {and White is okay.} Bxe5 25. Nxe5 Rxe5 26. Kg1) 24... Qd7 $2 {[%emt 0:00:23]} (24... Nf3 $1 $19 {[%mdl 512]} 25. Nxf5 (25. Bxf3 Qxh3+) 25... Ned2+ 26. Qxd2 Nxd2+ 27. Kg1 Rxe1+ 28. Kh2 Bxg3+ 29. Nxg3 Rb1) 25. Bxe5 {[%emt 0:00:32]} Bxe5 {[%emt 0:00:07]} 26. Qb5 $2 {[%emt 0:00:07][%mdl 8192]} (26. Re3 $15) 26... Qg4 $2 {[%emt 0:01:34]} (26... Nd2+ $19 27. Kg1 Bh2+ $1 {[%mdl 512]} 28. Kxh2 Qc7+ 29. Rg3 Rxe1) 27. Qxd5 $2 {[%emt 0:00:03][%mdl 8192]} (27. Nc2 $11 {and White stays safe.}) 27... Nd2+ $19 {[%emt 0:00:08]} 28. Kg1 {[%emt 0:00:02] [#]} Bh2+ {[%emt 0:00:10][%mdl 576] Discovered Attack} 29. Kxh2 {[%emt 0:00:01]} Rxe1 {[%emt 0:00:03]} 30. Qxb7 $2 {[%emt 0:00:15]} (30. Qd6 Nf1+ 31. Bxf1 Rxf1 32. Qg3) 30... Rce8 {[%emt 0:00:22]} 31. Qc7 {[%emt 0:00:04]} Nf1+ {[%emt 0:00:22]} 32. Bxf1 {[%emt 0:00:01]} Rxf1 {[%emt 0:00:02][%csl Gf1][%cal Rg4g1]} 33. Qg3 {[%emt 0:00:08] Inhibits Qg1+.} Qd1 {[%emt 0:00:09]} 34. Qf3 {[%emt 0:00:05] Against Rh1+} Qe1 {[%emt 0:00:14]} 35. Kg2 {[%emt 0:00:05]} (35. Kg3 $142 Qd2 36. Rh1 Rxh1 37. Qxh1) 35... Rg1+ $2 {[%emt 0:00:01]} (35... Re4 36. Nc2 Rg4+ $3 {[%mdl 512]} 37. Rg3 Rg1+ 38. Kh3 R4xg3+ 39. fxg3 Rh1+ 40. Kg4 Qe6+ 41. Kf4 Rf1 $3 {[%mdl 512]}) 36. Kh2 {[%emt 0:00:00]} Rf1 $2 {[%emt 0:00:13]} (36... Qb1 37. a4 Ree1) 37. Kg2 {[%emt 0:00:01]} Re4 {[%emt 0:00:06]} 38. Nc2 {[%emt 0:00:12] [#]} Rg4+ $3 {[%emt 0:00:07][%mdl 512]} 39. Rg3 {[%emt 0:00:00]} Rg1+ {[%emt 0:00:02]} 40. Kh3 {[%emt 0:00:01]} R4xg3+ {[%emt 0:00:03]} 41. fxg3 {[%emt 0:00:01][%mdl 4096] Endgame KQR-KQN} Rh1+ {[%emt 0:00:02]} 42. Kg4 {[%emt 0:00:06]} Qe6+ {[%emt 0:00:14]} 43. Kf4 {[%emt 0:00:00] [#]} Qd6+ {[%emt 0:00:08]} (43... Rf1 $142 $3 {[%mdl 512]} 44. Nd4 Rxf3+ 45. Kxf3 Qxa2) 44. Ke3 {[%emt 0:00:21]} (44. Ke4 $142 Qe6+ 45. Kd3) 44... Qb6+ $2 {[%emt 0:00:04]} (44... Rd1 {( -> ...Qd3+)} 45. Qe2 Qxg3+ 46. Qf3 Rd3+ $3 {[%mdl 512]} 47. Kxd3 Qxf3+ 48. Kc4 Qf2) 45. Kd3 {[%emt 0:00:06]} (45. Nd4 {was the only chance.} Rc1 46. Qf2) 45... Rb1 {[%emt 0:00:03]} 46. b3 {[%emt 0:00:04]} Rb2 {[%emt 0:00:04]} 47. Nd4 {[%emt 0:00:08]} Rxa2 {[%emt 0:00:06]} 48. Qa8+ {[%emt 0:00:02]} Kh7 {[%emt 0:00:01]} 49. Qf3 {[%emt 0:00:05]} Qa6+ {[%emt 0:00:02]} 50. c4 {[%emt 0:00:05]} (50. Ke3 {was forced.}) 50... Qa5 {[%emt 0:00:09] Threatens to win with ...Rd2+.} 51. Qxf7 {[%emt 0:00:10]} Qd2+ {[%emt 0:00:06]} (51... Rd2+ $142 52. Ke4 Qc3) 52. Ke4 {[%emt 0:00:00]} Qe1+ $1 {[%emt 0:00:03]} 53. Kd5 {[%emt 0:00:02]} Ra5+ $2 {[%emt 0:00:03]} (53... Qxg3 $19 54. Qe7 Qg2+ 55. Qe4 Ra5+ 56. Nb5 Qg3) 54. c5 $11 {[%emt 0:00:03]} Qc3 {[%emt 0:00:06]} 55. Qe7 {[%emt 0:00:13][%cal Oh4h5] Hoping for h5!} (55. Ne6 $5 {[%cal Re6f8]} Qd3+ 56. Kc6 Qa6+ 57. Kc7 Rxc5+ 58. Nxc5 Qb6+ 59. Kd7 Qxc5 60. Qf3 $14) 55... Qxg3 {[%emt 0:00:06]} 56. Qe4 {[%emt 0:00:01]} (56. b4 $11 {keeps the balance.} Ra6 57. b5 (57. Qe2 Ra1 $15) 57... Qg2+ 58. Ke5 (58. Qe4 Qa2+ 59. Ke5 Ra4 $11) 58... Qh2+ 59. Kd5 Qg2+ 60. Qe4 Qa2+ 61. Ke5) 56... Qh3 $2 {[%emt 0:00:11][%mdl 8192] [#]} ({Much worse is} 56... Qc7 $6 57. b4 Ra1 58. h5 Qd8+ 59. Kc4 Rc1+ 60. Kb5 Qxg5 61. hxg6+ Qxg6 62. Qh4+ Kg8 63. Qd8+ Kh7 64. Qh4+ Kg8 65. Qd8+ Kh7 66. Qh4+ $11) (56... Ra1 $1 $17 {[%cal Ra1e1] White must now prevent ...Re1.} 57. h5 Qxg5+ 58. Kc6 Qxh5) 57. Kd6 $2 {[%emt 0:00:07]} ({Stronger than} 57. b4 Ra1 $11) (57. Ne6 $1 $18) 57... Qh2+ {[%emt 0:00:09]} 58. Kd5 $1 {[%emt 0:00:02]} Qh3 {[%emt 0:00:01] [#]} (58... Ra1 $11) 59. b4 {[%emt 0:00:11]} ({White must play} 59. Ne6 $1 $16) 59... Qd7+ {[%emt 0:00:04]} 60. Kc4 {[%emt 0:00:04]} Ra1 {[%emt 0:00:01]} 61. h5 {[%emt 0:00:04] The board is on fire.} Rc1+ {[%emt 0:00:02]} 62. Kb3 {[%emt 0:00:02]} (62. Nc2 $11 Qf7+ 63. Kc3) 62... Qf7+ $2 {[%emt 0:00:03][%mdl 8192]} (62... Qh3+ $17 {and life is bright.} 63. Ka4 Qxh5) 63. Ne6 {[%emt 0:00:04] White threatens hxg6+ and mate.} Rf1 $2 {[%emt 0:00:17]} (63... Kg8) 64. c6 $18 {[%emt 0:00:11] c7 is the strong threat.} Rf4 {[%emt 0:00:08]} 65. hxg6+ {[%emt 0:00:04] White mates.} Qxg6 {[%emt 0:00:02]} 66. Qxg6+ {[%emt 0:00:01]} Kxg6 {[%emt 0:00:01]} 67. Nxf4+ {[%emt 0:00:01] White used his chance.  Weighted Error Value: White=0.80/Black=0.82} 1-0